fUSD/lending_fUSD_20240104
["ID","MTS","AMOUNT","RATE_DAILY","PERIOD"]
[310151120,1704384639023,-8664.71396629,0.000327,2]
[310151123,1704384639034,-2604.38056895,0.00032766,3]
[310151125,1704384639047,-4169.69985051,0.00032775,2]
[310151127,1704384639056,-9038.0002,0.00032776,2]
[310151129,1704384639065,-3500.7234,0.00032776,2]
[310151130,1704384639074,-2000.0,0.00032776,4]
[310151132,1704384639084,-55555.0,0.00032776,3]
[310151135,1704384639093,-7500.0,0.00032776,2]
[310151136,1704384639103,-271.17144473,0.00032776,6]
[310151139,1704384639113,-520.87611379,0.00032865,3]
[310151141,1704384639122,-7999.99,0.00032865,14]
[310151142,1704384639131,-2604.38056895,0.00032866,3]
[310151144,1704384639141,-6214.13353372,0.00032874,2]
[310151146,1704384639151,-234.39530691,0.00032875,2]
[310151148,1704384639161,-711.13,0.00032876,2]
[310151151,1704384639170,-500.0,0.00032876,2]
[310151153,1704384639180,-500.0,0.00032876,2]
[310151155,1704384639190,-188.23014047,0.00032876,2]
[310151157,1704384639199,-500.0,0.00032876,2]
[310151159,1704384639208,-500.0,0.00032876,2]
[310151161,1704384639218,-500.0,0.00032876,2]
[310151163,1704384639227,-500.0,0.00032876,2]
[310151165,1704384639236,-500.0,0.00032876,2]
[310151167,1704384639245,-297.47,0.00032876,2]
[310151169,1704384639254,-500.0,0.00032876,2]
[310151170,1704384639266,-728.62,0.00032876,2]
[310151173,1704384639275,-500.0,0.00032876,2]
[310151175,1704384639285,-500.0,0.00032876,2]
[310151177,1704384639295,-768.69,0.00032876,2]
[310151179,1704384639305,-589.83,0.00032876,2]
[310151181,1704384639314,-603.66,0.00032876,2]
[310151183,1704384639323,-678.89,0.00032876,2]
[310151185,1704384639333,-1000.0,0.00032876,2]
[310151187,1704384639343,-500.0,0.00032876,2]
[310151189,1704384639352,-500.0,0.00032876,2]
[310151191,1704384639361,-599.73,0.00032876,2]
[310151193,1704384639371,-528.48672384,0.00032876,2]
[310151195,1704384639380,-500.0,0.00032876,2]
[310151196,1704384639389,-609.87,0.00032876,2]
[310151198,1704384639398,-500.0,0.00032876,2]
[310151200,1704384639408,-500.0,0.00032876,2]
[310151203,1704384639419,-500.0,0.00032876,2]
[310151205,1704384639430,-500.0,0.00032876,2]
[310151206,1704384639439,-500.0,0.00032876,2]
[310151208,1704384639450,-500.0,0.00032876,2]
[310151210,1704384639459,-500.0,0.00032876,2]
[310151213,1704384639469,-500.0,0.00032876,2]
[310151215,1704384639479,-607.88,0.00032876,2]
[310151216,1704384639487,-500.0,0.00032876,2]
[310151218,1704384639496,-500.0,0.00032876,2]
[310151220,1704384639504,-500.0,0.00032876,2]
[310151222,1704384639513,-500.0,0.00032876,2]
[310151224,1704384639521,-500.0,0.00032876,2]
[310151226,1704384639530,-501.90796617,0.00032876,2]
[310151228,1704384639538,-500.0,0.00032876,2]
[310151230,1704384639548,-500.0,0.00032876,2]
[310151232,1704384639558,-500.0,0.00032876,2]
[310151234,1704384639568,-500.0,0.00032876,2]
[310151236,1704384639577,-500.0,0.00032876,2]
[310151238,1704384639587,-341.20659023,0.00032876,2]
[310151240,1704384639596,-500.0,0.00032876,2]
[310151242,1704384639606,-911.18,0.00032876,2]
[310151244,1704384639616,-636.28648644,0.00032876,2]
[310151246,1704384639625,-500.0,0.00032876,2]
[310151248,1704384639635,-500.0,0.00032876,2]
[310151250,1704384639644,-500.0,0.00032876,2]
[310151252,1704384639654,-500.0,0.00032876,2]
[310151254,1704384639663,-500.0,0.00032876,2]
[310151256,1704384639673,-500.0,0.00032876,2]
[310151259,1704384639683,-500.0,0.00032876,2]
[310151261,1704384639693,-500.0,0.00032876,2]
[310151262,1704384639702,-718.24,0.00032876,2]
[310151264,1704384639711,-690.39,0.00032876,2]
[310151267,1704384639720,-500.0,0.00032876,2]
[310151270,1704384639730,-500.0,0.00032876,2]
[310151272,1704384639739,-500.0,0.00032876,2]
[310151274,1704384639748,-712.49,0.00032876,2]
[310151277,1704384639758,-500.0,0.00032876,2]
[310151279,1704384639767,-500.0,0.00032876,2]
[310151280,1704384639776,-500.0,0.00032876,2]
[310151282,1704384639785,-500.0,0.00032876,2]
[310151285,1704384639796,-500.0,0.00032876,2]
[310151289,1704384639805,-500.0,0.00032876,2]
[310151292,1704384639814,-582.68,0.00032876,2]
[310151294,1704384639824,-500.0,0.00032876,2]
[310151297,1704384639833,-500.0,0.00032876,2]
[310151299,1704384639842,-630.42,0.00032876,2]
[310151301,1704384639851,-1056.44,0.00032876,2]
[310151303,1704384639861,-500.0,0.00032876,2]
[310151305,1704384639870,-500.0,0.00032876,2]
[310151307,1704384639879,-500.0,0.00032876,2]
[310151309,1704384639888,-1117.06,0.00032876,2]
[310151311,1704384639898,-500.0,0.00032876,2]
[310151313,1704384639907,-500.0,0.00032876,2]
[310151315,1704384639916,-500.0,0.00032876,2]
[310151317,1704384639925,-500.0,0.00032876,2]
[310151319,1704384639934,-500.0,0.00032876,2]
[310151321,1704384639944,-500.0,0.00032876,2]
[310151323,1704384639953,-500.0,0.00032876,2]
[310151325,1704384639962,-585.66,0.00032876,2]
[310151327,1704384639972,-500.0,0.00032876,2]
[310151329,1704384639981,-500.0,0.00032876,2]
[310151331,1704384639991,-789.66,0.00032876,2]
[310151333,1704384640000,-500.0,0.00032876,2]
[310151335,1704384640010,-500.0,0.00032876,2]
[310151337,1704384640020,-500.0,0.00032876,2]
[310151339,1704384640029,-500.0,0.00032876,2]
[310151341,1704384640038,-500.0,0.00032876,2]
[310151343,1704384640048,-500.0,0.00032876,2]
[310151345,1704384640058,-500.0,0.00032876,2]
[310151347,1704384640067,-500.0,0.00032876,2]
[310151349,1704384640077,-500.0,0.00032876,2]
[310151351,1704384640086,-500.0,0.00032876,2]
[310151353,1704384640096,-500.0,0.00032876,2]
[310151355,1704384640106,-500.0,0.00032876,2]
[310151357,1704384640115,-500.0,0.00032876,2]
[310151359,1704384640124,-500.0,0.00032876,2]
[310151361,1704384640133,-500.0,0.00032876,2]
[310151363,1704384640142,-500.0,0.00032876,2]
[310151365,1704384640151,-867.28,0.00032876,2]
[310151367,1704384640160,-764.44,0.00032876,2]
[310151369,1704384640169,-883.27,0.00032876,2]
[310151371,1704384640178,-500.0,0.00032876,2]
[310151373,1704384640188,-500.0,0.00032876,2]
[310151375,1704384640197,-500.0,0.00032876,2]
[310151377,1704384640207,-500.0,0.00032876,2]
[310151379,1704384640216,-842.43,0.00032876,2]
[310151381,1704384640225,-500.0,0.00032876,2]
[310151383,1704384640233,-682.97,0.00032876,2]
[310151385,1704384640242,-500.0,0.00032876,2]
[310151387,1704384640251,-500.0,0.00032876,2]
[310151389,1704384640261,-500.0,0.00032876,2]
[310151390,1704384640270,-500.0,0.00032876,2]
[310151392,1704384640279,-500.0,0.00032876,2]
[310151394,1704384640289,-500.0,0.00032876,2]
[310151396,1704384640298,-500.0,0.00032876,2]
[310151398,1704384640308,-670.92,0.00032876,2]
[310151400,1704384640320,-500.0,0.00032876,2]
[310151402,1704384640328,-319.8518148,0.00032876,2]
[310151404,1704384640338,-500.0,0.00032876,2]
[310151406,1704384640349,-1005.13,0.00032876,2]
[310151408,1704384640358,-500.0,0.00032876,2]
[310151410,1704384640367,-500.0,0.00032876,2]
[310151412,1704384640376,-1406.92,0.00032876,2]
[310151414,1704384640386,-725.93,0.00032876,2]
[310151416,1704384640395,-500.0,0.00032876,2]
[310151418,1704384640405,-500.0,0.00032876,2]
[310151420,1704384640414,-699.62,0.00032876,2]
[310151422,1704384640424,-1117.49,0.00032876,2]
[310151424,1704384640437,-674.55,0.00032876,2]
[310151426,1704384640447,-500.0,0.00032876,2]
[310151429,1704384640457,-677.2,0.00032876,2]
[310151431,1704384640467,-500.0,0.00032876,2]
[310151433,1704384640476,-500.0,0.00032876,2]
[310151434,1704384640486,-500.0,0.00032876,2]
[310151436,1704384640496,-500.0,0.00032876,2]
[310151438,1704384640505,-500.0,0.00032876,2]
[310151441,1704384640515,-782.63,0.00032876,2]
[310151443,1704384640525,-500.0,0.00032876,2]
[310151445,1704384640535,-500.0,0.00032876,2]
[310151447,1704384640545,-510.31,0.00032876,2]
[310151448,1704384640555,-830.54,0.00032876,2]
[310151450,1704384640564,-901.96,0.00032876,2]
[310151453,1704384640574,-500.0,0.00032876,2]
[310151456,1704384640583,-662.32,0.00032876,2]
[310151459,1704384640592,-500.0,0.00032876,2]
[310151462,1704384640601,-500.0,0.00032876,2]
[310151464,1704384640610,-500.0,0.00032876,2]
[310151467,1704384640620,-1824.67,0.00032876,2]
[310151470,1704384640629,-500.0,0.00032876,2]
[310151473,1704384640639,-931.95,0.00032876,2]
[310151475,1704384640650,-500.0,0.00032876,2]
[310151477,1704384640662,-500.0,0.00032876,2]
[310151479,1704384640671,-500.0,0.00032876,2]
[310151480,1704384640681,-500.0,0.00032876,2]
[310151482,1704384640690,-500.0,0.00032876,2]
[310151485,1704384640700,-306.31438251,0.00032876,2]
[310151487,1704384640709,-654.3,0.00032876,2]
[310151489,1704384640718,-500.0,0.00032876,2]
[310151491,1704384640727,-500.0,0.00032876,2]
[310151493,1704384640736,-500.0,0.00032876,2]
[310151495,1704384640745,-500.0,0.00032876,2]
[310151497,1704384640755,-1130.23,0.00032876,2]
[310151499,1704384640764,-500.0,0.00032876,2]
[310151501,1704384640773,-500.0,0.00032876,2]
[310151503,1704384640783,-500.0,0.00032876,2]
[310151505,1704384640793,-559.43,0.00032876,2]
[310151507,1704384640804,-530.78,0.00032876,2]
[310151509,1704384640813,-500.0,0.00032876,2]
[310151511,1704384640822,-500.0,0.00032876,2]
[310151513,1704384640831,-1026.82,0.00032876,2]
[310151515,1704384640841,-500.0,0.00032876,2]
[310151517,1704384640850,-500.0,0.00032876,2]
[310151519,1704384640859,-500.0,0.00032876,2]
[310151521,1704384640868,-586.09,0.00032876,2]
[310151523,1704384640877,-574.52,0.00032876,2]
[310151525,1704384640887,-622.68,0.00032876,2]
[310151527,1704384640897,-593.19,0.00032876,2]
[310151529,1704384640906,-633.75,0.00032876,2]
[310151531,1704384640915,-500.0,0.00032876,2]
[310151533,1704384640924,-230.92295168,0.00032876,2]
[310151535,1704384640934,-731.33,0.00032876,2]
[310151537,1704384640944,-756.82,0.00032876,2]
[310151539,1704384640953,-500.0,0.00032876,2]
[310151541,1704384640962,-500.0,0.00032876,2]
[310151543,1704384640971,-500.0,0.00032876,2]
[310151545,1704384640981,-751.68,0.00032876,2]
[310151547,1704384640991,-500.0,0.00032876,2]
[310151549,1704384641000,-500.0,0.00032876,2]
[310151551,1704384641010,-500.0,0.00032876,2]
[310151553,1704384641019,-812.26,0.00032876,2]
[310151555,1704384641029,-642.48,0.00032876,2]
[310151557,1704384641039,-490.03842779,0.00032876,2]
[310151559,1704384641049,-500.0,0.00032876,2]
[310151561,1704384641059,-500.0,0.00032876,2]
[310151563,1704384641068,-995.06,0.00032876,2]
[310151565,1704384641077,-647.0,0.00032876,2]
[310151567,1704384641087,-1428.61,0.00032876,2]
[310151569,1704384641096,-500.0,0.00032876,2]
[310151571,1704384641106,-500.0,0.00032876,2]
[310151573,1704384641115,-737.41,0.00032876,2]
[310151575,1704384641124,-500.0,0.00032876,2]
[310151577,1704384641134,-500.0,0.00032876,2]
[310151579,1704384641143,-719.19,0.00032876,2]
[310151581,1704384641152,-500.0,0.00032876,2]
[310151583,1704384641161,-966.27,0.00032876,2]
[310151585,1704384641171,-500.0,0.00032876,2]
[310151587,1704384641180,-500.0,0.00032876,2]
[310151589,1704384641189,-500.0,0.00032876,2]
[310151591,1704384641198,-683.25,0.00032876,2]
[310151593,1704384641207,-708.7,0.00032876,2]
[310151595,1704384641216,-500.0,0.00032876,2]
[310151597,1704384641226,-500.0,0.00032876,2]
[310151598,1704384641235,-1313.57,0.00032876,2]
[310151599,1704384641244,-500.0,0.00032876,2]
[310151600,1704384641253,-537.81,0.00032876,2]
[310151601,1704384641262,-978.7,0.00032876,2]
[310151602,1704384641272,-500.0,0.00032876,2]
[310151603,1704384641281,-855.47,0.00032876,2]
[310151604,1704384641291,-500.0,0.00032876,2]
[310151605,1704384641301,-500.0,0.00032876,2]
[310151606,1704384641318,-500.0,0.00032876,2]
[310151608,1704384641332,-500.0,0.00032876,2]
[310151611,1704384641346,-500.0,0.00032876,2]
[310151613,1704384641357,-504.3,0.00032876,2]
[310151616,1704384641372,-758.78,0.00032876,2]
[310151618,1704384641385,-500.0,0.00032876,2]
[310151621,1704384641399,-500.0,0.00032876,2]
[310151623,1704384641412,-500.0,0.00032876,2]
[310151625,1704384641425,-500.0,0.00032876,2]
[310151628,1704384641438,-500.0,0.00032876,2]
[310151630,1704384641448,-500.0,0.00032876,2]
[310151632,1704384641463,-500.0,0.00032876,2]
[310151635,1704384641475,-1007.26,0.00032876,2]
[310151637,1704384641488,-500.0,0.00032876,2]
[310151640,1704384641502,-500.0,0.00032876,2]
[310151642,1704384641516,-500.0,0.00032876,2]
[310151645,1704384641529,-500.0,0.00032876,2]
[310151647,1704384641542,-500.0,0.00032876,2]
[310151650,1704384641557,-691.87,0.00032876,2]
[310151652,1704384641570,-944.11,0.00032876,2]
[310151654,1704384641583,-1634.31,0.00032876,2]
[310151657,1704384641597,-500.0,0.00032876,2]
[310151659,1704384641610,-500.0,0.00032876,2]
[310151662,1704384641622,-1332.99,0.00032876,2]
[310151664,1704384641637,-500.0,0.00032876,2]
[310151667,1704384641651,-500.0,0.00032876,2]
[310151669,1704384641661,-1233.69,0.00032876,2]
[310151671,1704384641674,-500.0,0.00032876,2]
[310151673,1704384641685,-1754.71,0.00032876,2]
[310151676,1704384641698,-650.36,0.00032876,2]
[310151678,1704384641711,-500.0,0.00032876,2]
[310151681,1704384641725,-500.0,0.00032876,2]
[310151683,1704384641736,-602.68,0.00032876,2]
[310151685,1704384641747,-1493.68,0.00032876,2]
[310151688,1704384641760,-500.0,0.00032876,2]
[310151690,1704384641771,-500.0,0.00032876,2]
[310151692,1704384641781,-705.76,0.00032876,2]
[310151694,1704384641792,-1386.7,0.00032876,2]
[310151696,1704384641806,-1253.93,0.00032876,2]
[310151699,1704384641819,-500.0,0.00032876,2]
[310151701,1704384641832,-500.0,0.00032876,2]
[310151704,1704384641845,-712.45,0.00032876,2]
[310151706,1704384641857,-1385.49,0.00032876,2]
[310151708,1704384641870,-719.5,0.00032876,2]
[310151711,1704384641885,-795.9,0.00032876,2]
[310151713,1704384641898,-614.02,0.00032876,2]
[310151716,1704384641911,-500.0,0.00032876,2]
[310151719,1704384641937,-500.0,0.00032876,2]
[310151722,1704384641950,-500.0,0.00032876,2]
[310151724,1704384641962,-702.74,0.00032876,2]
[310151726,1704384641975,-2346.06,0.00032876,2]
[310151729,1704384641988,-782.01,0.00032876,2]
[310151731,1704384642001,-500.0,0.00032876,2]
[310151734,1704384642013,-1144.21,0.00032876,2]
[310151736,1704384642029,-825.04,0.00032876,2]
[310151739,1704384642043,-759.74,0.00032876,2]
[310151742,1704384642059,-500.0,0.00032876,2]
[310151744,1704384642073,-591.92,0.00032876,2]
[310151747,1704384642087,-500.0,0.00032876,2]
[310151749,1704384642101,-476.14606678,0.00032876,2]
[310151752,1704384642115,-500.0,0.00032876,2]
[310151754,1704384642128,-500.0,0.00032876,2]
[310151756,1704384642141,-1538.71,0.00032876,2]
[310151759,1704384642154,-500.0,0.00032876,2]
[310151761,1704384642167,-500.0,0.00032876,2]
[310151764,1704384642180,-1209.37,0.00032876,2]
[310151766,1704384642192,-500.0,0.00032876,2]
[310151768,1704384642205,-1769.02,0.00032876,2]
[310151770,1704384642217,-500.0,0.00032876,2]
[310151773,1704384642229,-1608.02,0.00032876,2]
[310151775,1704384642242,-1312.71,0.00032876,2]
[310151777,1704384642254,-500.0,0.00032876,2]
[310151780,1704384642266,-500.0,0.00032876,2]
[310151782,1704384642279,-866.14,0.00032876,2]
[310151784,1704384642292,-597.7,0.00032876,2]
[310151787,1704384642307,-3238.36,0.00032876,2]
[310151789,1704384642320,-500.0,0.00032876,2]
[310151792,1704384642332,-758.49,0.00032876,2]
[310151794,1704384642347,-500.0,0.00032876,2]
[310151796,1704384642362,-861.13,0.00032876,2]
[310151799,1704384642374,-500.0,0.00032876,2]
[310151801,1704384642388,-583.25111718,0.00032876,2]
[310151803,1704384642400,-554.04,0.00032876,2]
[310151806,1704384642412,-500.0,0.00032876,2]
[310151808,1704384642424,-500.0,0.00032876,2]
[310151811,1704384642441,-910.85,0.00032876,2]
[310151813,1704384642455,-596.22,0.00032876,2]
[310151815,1704384642468,-647.07,0.00032876,2]
[310151818,1704384642479,-840.62,0.00032876,2]
[310151820,1704384642491,-552.48,0.00032876,2]
[310151822,1704384642504,-957.37,0.00032876,2]
[310151824,1704384642516,-859.39,0.00032876,2]
[310151827,1704384642527,-1225.89,0.00032876,2]
[310151829,1704384642540,-500.0,0.00032876,2]
[310151832,1704384642554,-562.44,0.00032876,2]
[310151834,1704384642566,-765.17,0.00032876,2]
[310151836,1704384642577,-659.69,0.00032876,2]
[310151838,1704384642589,-500.0,0.00032876,2]
[310151841,1704384642602,-500.0,0.00032876,2]
[310151843,1704384642613,-1445.4,0.00032876,2]
[310151845,1704384642625,-704.58,0.00032876,2]
[310151847,1704384642637,-500.0,0.00032876,2]
[310151850,1704384642651,-616.78,0.00032876,2]
[310151852,1704384642663,-500.0,0.00032876,2]
[310151854,1704384642675,-500.0,0.00032876,2]
[310151857,1704384642688,-683.51,0.00032876,2]
[310151859,1704384642699,-661.23,0.00032876,2]
[310151861,1704384642711,-166.52182776,0.00032876,2]
[310151863,1704384642724,-529.83,0.00032876,2]
[310151865,1704384642737,-500.0,0.00032876,2]
[310151869,1704384642749,-500.0,0.00032876,2]
[310151872,1704384642761,-500.0,0.00032876,2]
[310151875,1704384642772,-500.0,0.00032876,2]
[310151879,1704384642785,-782.54,0.00032876,2]
[310151882,1704384642796,-588.15,0.00032876,2]
[310151884,1704384642809,-1195.11,0.00032876,2]
[310151886,1704384642822,-674.54,0.00032876,2]
[310151889,1704384642833,-831.54,0.00032876,2]
[310151893,1704384642845,-1310.86,0.00032876,2]
[310151896,1704384642856,-500.0,0.00032876,2]
[310151900,1704384642869,-500.0,0.00032876,2]
[310151902,1704384642881,-500.0,0.00032876,2]
[310151904,1704384642892,-500.0,0.00032876,2]
[310151906,1704384642904,-500.0,0.00032876,2]
[310151909,1704384642915,-1025.23,0.00032876,2]
[310151911,1704384642927,-785.28,0.00032876,2]
[310151913,1704384642938,-1101.26,0.00032876,2]
[310151915,1704384642950,-705.23,0.00032876,2]
[310151918,1704384642962,-1065.41,0.00032876,2]
[310151920,1704384642973,-500.0,0.00032876,2]
[310151923,1704384642984,-500.0,0.00032876,2]
[310151926,1704384643011,-1054.98,0.00032876,2]
[310151929,1704384643030,-500.0,0.00032876,2]
[310151931,1704384643044,-995.7,0.00032876,2]
[310151934,1704384643060,-744.22,0.00032876,2]
[310151936,1704384643075,-500.0,0.00032876,2]
[310151939,1704384643089,-500.0,0.00032876,2]
[310151941,1704384643102,-500.0,0.00032876,2]
[310151944,1704384643116,-1427.22,0.00032876,2]
[310151946,1704384643131,-413.77310418,0.00032876,2]
[310151949,1704384643145,-1238.86,0.00032876,2]
[310151951,1704384643158,-742.23,0.00032876,2]
[310151954,1704384643171,-887.92,0.00032876,2]
[310151956,1704384643185,-500.0,0.00032876,2]
[310151959,1704384643199,-666.3,0.00032876,2]
[310151961,1704384643212,-907.32,0.00032876,2]
[310151963,1704384643224,-500.0,0.00032876,2]
[310151966,1704384643236,-702.86,0.00032876,2]
[310151968,1704384643250,-500.0,0.00032876,2]
[310151971,1704384643263,-648.69,0.00032876,2]
[310151973,1704384643275,-500.0,0.00032876,2]
[310151975,1704384643287,-500.0,0.00032876,2]
[310151978,1704384643300,-500.0,0.00032876,2]
[310151980,1704384643313,-945.74,0.00032876,2]
[310151982,1704384643324,-920.91,0.00032876,2]
[310151985,1704384643336,-252.29577921,0.00032876,2]
[310151987,1704384643349,-500.0,0.00032876,2]
[310151989,1704384643360,-1400.63,0.00032876,2]
[310151991,1704384643372,-672.89,0.00032876,2]
[310151994,1704384643384,-535.81,0.00032876,2]
[310151996,1704384643396,-500.0,0.00032876,2]
[310151998,1704384643408,-500.0,0.00032876,2]
[310152001,1704384643421,-500.0,0.00032876,2]
[310152003,1704384643435,-500.0,0.00032876,2]
[310152005,1704384643447,-500.0,0.00032876,2]
[310152008,1704384643460,-750.79,0.00032876,2]
[310152010,1704384643472,-1057.28,0.00032876,2]
[310152012,1704384643483,-523.13,0.00032876,2]
[310152015,1704384643494,-500.0,0.00032876,2]
[310152017,1704384643507,-1335.29,0.00032876,2]
[310152019,1704384643519,-500.0,0.00032876,2]
[310152021,1704384643530,-878.66,0.00032876,2]
[310152024,1704384643542,-500.0,0.00032876,2]
[310152026,1704384643555,-1605.48,0.00032876,2]
[310152028,1704384643568,-500.0,0.00032876,2]
[310152031,1704384643579,-500.0,0.00032876,2]
[310152033,1704384643590,-500.0,0.00032876,2]
[310152034,1704384643601,-500.0,0.00032876,2]
[310152035,1704384643612,-1736.22,0.00032876,2]
[310152036,1704384643623,-847.37,0.00032876,2]
[310152037,1704384643634,-500.0,0.00032876,2]
[310152038,1704384643645,-762.22,0.00032876,2]
[310152039,1704384643656,-500.0,0.00032876,2]
[310152040,1704384643667,-500.0,0.00032876,2]
[310152041,1704384643679,-668.67,0.00032876,2]
[310152043,1704384643691,-500.0,0.00032876,2]
[310152045,1704384643702,-1025.7,0.00032876,2]
[310152048,1704384643714,-500.0,0.00032876,2]
[310152050,1704384643725,-530.17,0.00032876,2]
[310152052,1704384643736,-500.0,0.00032876,2]
[310152054,1704384643748,-500.0,0.00032876,2]
[310152057,1704384643759,-790.72,0.00032876,2]
[310152059,1704384643774,-500.0,0.00032876,2]
[310152062,1704384643787,-959.6,0.00032876,2]
[310152064,1704384643800,-500.0,0.00032876,2]
[310152067,1704384643813,-500.0,0.00032876,2]
[310152069,1704384643826,-516.03,0.00032876,2]
[310152071,1704384643840,-500.0,0.00032876,2]
[310152074,1704384643853,-873.69,0.00032876,2]
[310152076,1704384643866,-506.97,0.00032876,2]
[310152079,1704384643879,-500.0,0.00032876,2]
[310152081,1704384643892,-500.0,0.00032876,2]
[310152084,1704384643906,-529.99,0.00032876,2]
[310152086,1704384643918,-1032.21,0.00032876,2]
[310152088,1704384643932,-500.0,0.00032876,2]
[310152091,1704384643945,-917.61,0.00032876,2]
[310152093,1704384643957,-500.0,0.00032876,2]
[310152095,1704384643970,-500.0,0.00032876,2]
[310152098,1704384643982,-500.0,0.00032876,2]
[310152100,1704384643994,-610.7,0.00032876,2]
[310152102,1704384644006,-1220.03,0.00032876,2]
[310152105,1704384644018,-1169.06,0.00032876,2]
[310152107,1704384644030,-1607.98,0.00032876,2]
[310152109,1704384644041,-500.0,0.00032876,2]
[310152111,1704384644055,-500.0,0.00032876,2]
[310152114,1704384644067,-534.36,0.00032876,2]
[310152116,1704384644081,-631.5,0.00032876,2]
[310152118,1704384644092,-1479.9,0.00032876,2]
[310152121,1704384644104,-680.74,0.00032876,2]
[310152123,1704384644115,-1507.11,0.00032876,2]
[310152125,1704384644126,-500.0,0.00032876,2]
[310152127,1704384644137,-500.0,0.00032876,2]
[310152130,1704384644148,-500.0,0.00032876,2]
[310152132,1704384644159,-300.0,0.00032876,2]
[310152134,1704384644170,-2169.33,0.00032876,2]
[310152136,1704384644182,-2030.09,0.00032876,2]
[310152139,1704384644194,-1423.07,0.00032876,2]
[310152141,1704384644206,-500.0,0.00032876,2]
[310152143,1704384644217,-500.0,0.00032876,2]
[310152146,1704384644231,-500.0,0.00032876,2]
[310152148,1704384644242,-500.0,0.00032876,2]
[310152150,1704384644254,-500.0,0.00032876,2]
[310152151,1704384644266,-822.67,0.00032876,2]
[310152152,1704384644276,-500.0,0.00032876,2]
[310152153,1704384644286,-500.0,0.00032876,2]
[310152154,1704384644296,-500.0,0.00032876,2]
[310152155,1704384644307,-1764.34,0.00032876,2]
[310152156,1704384644317,-3860.65,0.00032876,2]
[310152157,1704384644328,-1227.94,0.00032876,2]
[310152158,1704384644339,-1694.53,0.00032876,2]
[310152159,1704384644354,-654.78,0.00032876,2]
[310152160,1704384644364,-229.49856082,0.00032876,2]
[310152161,1704384644374,-675.26,0.00032876,2]
[310152208,1704384644841,-1024.69,0.00032876,2]
[310152212,1704384644866,-1667.8,0.00032876,2]
[310152216,1704384644892,-1667.8,0.00032876,2]
[310152219,1704384644916,-500.0,0.00032876,2]
[310152221,1704384644928,-2166.67,0.00032876,2]
[310152223,1704384644938,-500.0,0.00032876,2]
[310152225,1704384644947,-500.0,0.00032876,2]
[310152227,1704384644956,-644.95,0.00032876,2]
[310152229,1704384644966,-6237.21,0.00032876,2]
[310152231,1704384644975,-500.0,0.00032876,2]
[310152233,1704384644984,-2236.13,0.00032876,2]
[310152235,1704384644993,-500.0,0.00032876,2]
[310152237,1704384645003,-500.0,0.00032876,2]
[310152239,1704384645012,-500.0,0.00032876,2]
[310152241,1704384645023,-1565.67,0.00032876,2]
[310152243,1704384645032,-748.67,0.00032876,2]